bitfinex-derivatives/quotes_ETHF0:USTF0_20210402
["timestamp","ask_amount","ask_price","bid_price","bid_amount"]
[1617338716865,0.9429618,1995.0,1994.6,62.4358]
[1617338717266,0.94319464,1994.8,1993.8,30.0]
[1617338717466,59.2159,1994.6,1994.0,30.0]
[1617338717664,60.15919039,1994.6,1994.2,30.0]
[1617338718065,2.76290555,1994.5,1994.2,30.0]
[1617338718667,59.2159,1994.6,1994.2,30.0]
[1617338718668,0.05871259,1994.3,1994.2,30.0]
[1617338719068,1.7506,1994.7,1994.2,30.0]
[1617338719267,1.7506,1994.7,1994.6,2.90695]
[1617338719667,0.7498,1994.7,1994.6,2.90695]
[1617338719868,0.93942591,1994.9,1994.6,2.90695]
[1617338720066,0.93942604,1995.0,1994.6,2.90695]
[1617338720467,0.93942688,1994.9,1994.6,2.90695]
[1617338720668,1.58730861,1995.0,1994.6,2.90695]
[1617338721269,1.58730861,1995.0,1994.9,2.90695]
[1617338722871,1.58730861,1995.0,1994.9,4.72855]
[1617338723370,0.93929965,1995.3,1994.9,4.72855]
[1617338723570,0.93929965,1995.3,1994.9,34.72855]
[1617338723770,0.93926943,1995.4,1994.9,34.72855]
[1617338723971,0.93926943,1995.4,1995.1,79.6493]
[1617338724171,0.93921648,1995.5,1995.1,79.6493]
[1617338724470,0.93921648,1995.5,1995.1,109.6493]
[1617338724672,0.9392119,1995.7,1995.1,109.6493]
[1617338724873,0.93914132,1995.8,1995.1,109.6493]
[1617338725273,0.058696,1995.3,1995.1,109.6493]
[1617338725673,0.058696,1995.3,1995.2,2.0]
[1617338725875,2.35527325,1996.2,1995.3,30.0]
[1617338726074,1.18135335,1996.2,1995.7,30.0]
[1617338726274,1.18135335,1996.2,1995.7,31.8912]
[1617338726477,1.17376719,1996.5,1995.7,31.8912]
[1617338726677,0.17296719,1996.5,1995.7,31.8912]
[1617338727478,2.05702701,1996.7,1996.4,2.90695]
[1617338727679,2.05702701,1996.7,1996.4,4.77555]
[1617338727878,2.05704623,1996.8,1996.4,4.77555]
[1617338729381,2.05639497,1996.9,1996.7,2.90695]
[1617338730081,2.05735212,1996.8,1996.7,2.90695]
[1617338733787,1.05655212,1996.8,1996.7,2.90695]
[1617338735089,5.08644722,1996.8,1996.7,2.90695]
[1617338738695,5.08644722,1996.8,1996.7,4.18995]
[1617338738895,4.0298951,1996.8,1996.7,4.18995]
[1617338740795,3.0290951,1996.8,1996.7,4.18995]
[1617338741596,3.0290951,1996.8,1996.7,2.90695]
[1617338743098,3.0290951,1996.8,1996.7,4.42745]
[1617338744305,5.08690743,1996.8,1996.7,4.42745]
[1617338744708,3.0290951,1996.8,1996.7,4.42745]
[1617338745409,5.08687475,1996.8,1996.7,4.42745]
[1617338746008,3.0290951,1996.8,1996.7,4.42745]
[1617338746410,5.08688605,1996.8,1996.7,4.42745]
[1617338747211,5.08688605,1996.8,1996.7,2.90695]
[1617338747411,20.18924639,1997.2,1996.7,2.90695]
[1617338747412,2.93840727,1996.9,1996.7,2.90695]
[1617338747812,5.29357764,1997.1,1996.7,2.90695]
[1617338747813,4.84469712,1996.8,1996.7,2.90695]
[1617338748812,65.54689712,1996.8,1996.7,2.90695]
[1617338749111,70.29216456,1996.8,1996.7,2.90695]
[1617338749310,71.29586456,1996.8,1996.7,2.90695]
[1617338749511,70.29216456,1996.8,1996.7,2.90695]
[1617338753818,67.35361744,1996.8,1996.7,2.90695]
[1617338754718,66.35281744,1996.8,1996.7,2.90695]
[1617338757320,69.29175819,1996.8,1996.7,2.90695]
[1617338758121,66.35281744,1996.8,1996.7,2.90695]
[1617338758522,69.29180644,1996.8,1996.7,2.90695]
[1617338759221,8.58960644,1996.8,1996.7,2.90695]
[1617338759422,7.68425644,1996.8,1996.7,74.30045]
[1617338759621,2.938989,1996.8,1996.7,74.30045]
[1617338761722,1.938189,1996.8,1996.7,74.30045]
[1617338761923,2.59542579,1996.8,1996.7,74.30045]
[1617338762123,1.938189,1996.8,1996.7,74.30045]
[1617338762524,2.58428552,1996.8,1996.7,74.30045]
[1617338762925,1.938189,1996.8,1996.7,74.30045]
[1617338764127,1.938189,1996.8,1996.7,2.90695]
[1617338765229,7.3002254,1996.8,1996.7,2.90695]
[1617338765631,5.3620364,1996.8,1996.7,2.90695]
[1617338768336,6.3693364,1996.8,1996.7,2.90695]
[1617338768735,5.3685364,1996.8,1996.7,2.90695]
[1617338770241,4.3612364,1996.8,1996.7,2.90695]
[1617338772146,7.30037481,1996.8,1996.7,2.90695]
[1617338772547,4.3612364,1996.8,1996.7,2.90695]
[1617338772747,6.3612364,1996.8,1996.7,2.90695]
[1617338774746,7.3572364,1996.8,1996.7,2.90695]
[1617338776348,11.47098326,1996.8,1996.7,2.90695]
[1617338776947,10.47498326,1996.8,1996.7,2.90695]
[1617338777547,6.3612364,1996.8,1996.7,2.90695]
[1617338780250,4.3612364,1996.8,1996.7,2.90695]
[1617338781954,8.47519333,1996.8,1996.7,2.90695]
[1617338785656,4.3612364,1996.8,1996.7,2.90695]
[1617338792067,4.3612364,1996.8,1996.5,2.90695]
[1617338792467,2.93948766,1996.6,1996.5,2.90695]
[1617338793970,5.84643766,1996.6,1996.5,2.90695]
[1617338796277,2.90695,1996.6,1996.5,2.90695]
[1617338796475,4.90695,1996.6,1996.5,2.90695]
[1617338796677,82.64049602,1996.6,1996.5,2.90695]
[1617338797376,87.34609401,1996.6,1996.5,2.90695]
[1617338798477,85.34609401,1996.6,1996.5,2.90695]
[1617338799680,87.34609401,1996.6,1996.5,2.90695]
[1617338800579,10.55199401,1996.6,1996.5,2.90695]
[1617338800779,7.64504401,1996.6,1996.5,81.26575]
[1617338801179,2.93944602,1996.6,1996.5,81.26575]
[1617338801782,2.93862238,1996.7,1996.5,81.26575]
[1617338802181,0.64112719,1996.6,1996.5,81.26575]
[1617338802581,2.93862238,1996.7,1996.5,81.26575]
[1617338802782,0.64114568,1996.6,1996.5,81.26575]
[1617338803183,2.93862238,1996.7,1996.5,81.26575]
[1617338803582,2.93987018,1996.6,1996.5,81.26575]
[1617338803782,2.93987018,1996.6,1996.5,4.89805]
[1617338803987,2.93987018,1996.6,1996.5,2.90695]
[1617338804185,5.84682018,1996.6,1996.5,2.90695]
[1617338804384,11.19516376,1996.6,1996.5,2.90695]
[1617338806288,30.0,1996.4,1994.8,75.2214]
[1617338806489,0.94012502,1995.5,1994.8,75.2214]
[1617338806687,0.70509376,1995.3,1992.8,0.9993]
[1617338806888,70.796,1994.8,1993.7,70.796]
[1617338807289,70.796,1994.8,1992.8,86.9659]
[1617338807290,0.70520658,1994.9,1993.9,30.0]
[1617338807490,73.654,1994.2,1993.9,30.0]
[1617338808089,73.654,1994.2,1994.1,2.90695]
[1617338808290,0.70523266,1994.7,1994.1,34.90695]
[1617338808690,0.94408828,1994.3,1994.1,34.90695]
[1617338809091,0.70805371,1994.2,1994.1,34.90695]
[1617338810397,0.70805075,1994.3,1994.1,34.90695]
[1617338810592,0.70805075,1994.3,1994.1,36.33375]
[1617338813497,0.70799515,1994.4,1994.1,36.33375]
[1617338814100,0.70799515,1994.4,1994.3,32.90695]
[1617338814597,0.70795987,1994.5,1994.3,34.90695]
[1617338814999,0.70651858,1994.9,1994.3,34.90695]
[1617338816204,0.70651858,1994.9,1994.8,2.90695]
[1617338816401,0.94203658,1995.0,1994.8,3.91075]
[1617338816602,0.68244503,1994.9,1994.8,3.91075]
[1617338817001,0.94203658,1995.0,1994.8,2.90695]
[1617338817802,0.94207268,1994.9,1994.8,2.90695]
[1617338818604,0.9420519,1995.0,1994.8,2.90695]
[1617338821111,0.9419673,1994.9,1994.8,2.90695]
[1617338821813,1.17749246,1995.0,1994.8,2.90695]
[1617338823015,0.94198399,1994.9,1994.8,2.90695]
[1617338823414,1.17749812,1995.0,1994.8,2.90695]
[1617338825514,0.94198478,1994.9,1994.8,2.90695]
[1617338825915,0.70553676,1994.9,1994.8,2.90695]
[1617338829418,0.70549944,1995.0,1994.8,2.90695]
[1617338829618,0.70549944,1995.0,1994.8,4.12095]
[1617338829820,0.70549944,1995.0,1994.8,34.12095]
[1617338830218,0.70544174,1995.1,1994.8,34.12095]
[1617338830618,0.70542688,1995.2,1994.9,2.0]
[1617338830819,0.70542688,1995.2,1994.9,32.0]
[1617338832424,0.70542688,1995.2,1995.1,2.90695]
[1617338832624,0.94073703,1995.3,1995.1,2.90695]
[1617338833026,1.36377934,1995.2,1995.1,2.90695]
[1617338833426,0.70554824,1995.2,1995.1,2.90695]
[1617338834828,0.64547923,1995.4,1995.1,2.90695]
[1617338835130,1.17586094,1995.7,1995.1,2.90695]
[1617338835328,1.17586094,1995.7,1995.1,32.90695]
[1617338835529,1.17587868,1995.6,1995.1,32.90695]
[1617338835728,1.17587868,1995.6,1995.1,34.90695]
[1617338835930,7.49210333,1995.8,1995.5,30.0]
[1617338835931,1.17572969,1995.8,1995.5,30.0]
[1617338836129,1.17572969,1995.8,1995.5,31.9173]
[1617338836331,1.17565336,1995.9,1995.5,31.9173]
[1617338836530,1.17563687,1996.0,1995.7,2.90695]
[1617338837131,1.17563687,1996.0,1995.7,32.90695]
[1617338838431,1.17563687,1996.0,1995.9,2.90695]
[1617338838831,1.17565579,1996.1,1995.9,2.90695]
[1617338839132,1.17565708,1996.0,1995.9,2.90695]
[1617338839731,2.06058618,1996.1,1995.9,2.90695]
[1617338840132,0.64680546,1996.0,1995.9,2.90695]
[1617338840533,2.94260095,1996.1,1995.9,2.90695]
[1617338840933,2.9428351,1996.0,1995.9,2.90695]
[1617338841133,0.64688457,1996.0,1995.9,2.90695]
[1617338841532,4.76571163,1996.1,1995.9,2.90695]
[1617338841935,3.76520569,1996.1,1995.9,2.90695]
[1617338844339,8.20259673,1996.2,1995.9,2.90695]
[1617338844541,5.29564673,1996.2,1996.1,2.90695]
[1617338845539,5.29564673,1996.2,1994.8,62.7775]
[1617338845739,76.0333,1995.4,1994.8,62.7775]
[1617338846139,1.1816743,1995.3,1994.8,62.7775]
[1617338846540,2.35789102,1995.3,1995.2,2.90695]
[1617338847742,1.1816743,1995.3,1995.2,2.90695]
[1617338848941,0.1808743,1995.3,1995.2,2.90695]
[1617338850242,1.35713999,1995.3,1995.2,2.90695]
[1617338850642,0.1808743,1995.3,1995.2,2.90695]
[1617338851043,2.06142096,1995.4,1995.2,2.90695]
[1617338853943,1.17589506,1995.3,1995.2,2.90695]
[1617338854943,75.69579506,1995.3,1995.2,2.90695]
[1617338855344,76.87755366,1995.3,1995.2,2.90695]
[1617338855944,75.87675366,1995.3,1995.2,2.90695]
[1617338858147,1.35685366,1995.3,1995.2,2.90695]
[1617338858548,0.17509506,1995.3,1995.2,2.90695]
[1617338859749,75.95279506,1995.3,1995.2,2.90695]
[1617338860250,77.13454008,1995.3,1995.2,2.90695]
[1617338861349,76.95944502,1995.3,1995.2,2.90695]
[1617338862850,75.95864502,1995.3,1995.2,2.90695]
[1617338863853,78.01990594,1995.3,1995.2,2.90695]
[1617338865253,75.95864502,1995.3,1995.2,2.90695]
[1617338868754,1.18174502,1995.3,1995.2,2.90695]
[1617338868955,6.14959026,1995.3,1995.2,2.90695]
[1617338869354,4.96784524,1995.3,1995.2,2.90695]
[1617338869555,2.06089524,1995.3,1995.2,2.90695]
[1617338869954,1.06009524,1995.3,1995.2,2.90695]
[1617338873958,2.94393401,1995.4,1995.2,2.90695]
[1617338874358,34.12033122,1995.6,1995.2,2.90695]
[1617338874359,2.94395867,1995.3,1995.2,2.90695]
[1617338874557,3.54564901,1995.3,1995.2,2.90695]
[1617338874956,5.85090867,1995.3,1995.0,2.90695]
[1617338875157,81.7833,1995.2,1995.0,2.90695]
[1617338875960,3.44809804,1995.1,1995.0,2.90695]
[1617338876960,5.35424804,1995.1,1995.0,2.90695]
[1617338879263,4.08278249,1995.1,1995.0,2.90695]
[1617338879663,2.90695,1995.1,1995.0,2.90695]
[1617338882270,4.96871072,1995.1,1995.0,2.90695]
[1617338890272,73.0718,1995.0,1994.8,3.9119]
[1617338890471,4.63154509,1994.9,1994.8,3.9119]
[1617338890873,3.63074509,1994.9,1994.8,3.9119]
[1617338891074,6.53769509,1994.9,1994.8,3.9119]
[1617338891273,10.65866664,1994.9,1994.8,3.9119]
[1617338892985,5.85124383,1994.9,1994.8,6.81885]
[1617338893374,2.90695,1994.9,1994.8,6.81885]
[1617338895976,2.90695,1994.9,1994.8,8.43655]
[1617338897579,5.85325512,1994.9,1994.8,8.43655]
[1617338897979,1.90615,1994.9,1994.8,8.43655]
[1617338904492,4.85247996,1994.9,1994.8,8.43655]
[1617338905191,1.90615,1994.9,1994.8,6.81885]
[1617338905792,1.90615,1994.9,1994.8,8.71205]
[1617338905994,4.8524839,1994.9,1994.8,8.71205]
[1617338907397,2.9463339,1994.9,1994.8,5.8051]
[1617338907999,5.8532839,1994.9,1994.8,8.71205]
[1617338912608,2.9463339,1994.9,1994.8,5.8051]
[1617338912807,2.9463339,1994.9,1994.8,3.9119]
[1617338913008,5.8532839,1994.9,1994.8,3.9119]
[1617338913207,2.90695,1994.9,1994.8,3.9119]
[1617338914208,7.45058594,1994.9,1994.8,3.9119]
[1617338914409,37.45058594,1994.9,1994.4,2.85485]
[1617338915009,2.90695,1994.5,1994.2,2.90695]
[1617338915211,30.0,1994.4,1994.2,2.90695]
[1617338915410,7.03001082,1994.5,1994.2,2.90695]
[1617338915810,2.94522941,1994.3,1994.2,2.90695]
[1617338916010,3.51477388,1994.4,1994.2,2.90695]
[1617338916410,3.51484493,1994.3,1994.2,2.90695]
[1617338916811,2.94529801,1994.3,1994.2,2.90695]
[1617338917012,2.90695,1994.3,1994.2,2.90695]
[1617338917411,3.47653414,1994.3,1994.2,2.90695]
[1617338917813,3.47653414,1994.3,1992.7,1.5739]
[1617338918011,73.4584,1993.6,1992.7,1.5739]
[1617338918211,73.4584,1993.6,1992.5,77.7146]
[1617338918611,0.05883882,1992.8,1992.6,2.0]
[1617338919012,0.05883882,1992.8,1992.7,2.90695]
[1617338919613,0.05866018,1993.2,1992.7,2.90695]
[1617338919813,63.9892,1992.9,1992.7,2.90695]
[1617338923116,0.05866696,1993.0,1992.7,2.90695]
[1617338923317,0.05864633,1992.8,1992.7,2.90695]
[1617338925119,0.70366973,1993.2,1992.7,2.90695]
[1617338925319,0.05863961,1992.8,1992.7,2.90695]
[1617338925919,74.0782,1992.9,1992.7,2.90695]
[1617338926718,0.70365193,1993.2,1992.7,2.90695]
[1617338927320,0.70365193,1993.2,1993.0,2.90695]
[1617338927521,81.4943,1993.0,1991.4,2.0]
[1617338927720,0.70347252,1993.1,1991.0,30.0]
[1617338927921,81.4943,1991.6,1991.1,30.0]
[1617338928525,0.05859309,1992.4,1989.9,1.9962]
[1617338928724,68.489,1990.9,1990.3,30.0]
[1617338929124,68.489,1990.9,1990.5,30.0]
[1617338929325,0.05856659,1992.1,1990.8,2.90695]
[1617338929525,66.2235,1991.4,1990.9,30.0]
[1617338930426,66.2235,1991.4,1991.0,2.0]
[1617338930827,66.2235,1991.4,1990.8,2.90695]
[1617338931227,66.2235,1991.4,1991.3,2.90695]
[1617338931428,30.0,1992.2,1991.3,2.90695]
[1617338931628,30.0,1992.0,1991.3,2.90695]
[1617338931827,32.0,1992.0,1991.3,2.90695]
[1617338932427,2.0,1992.0,1991.3,2.90695]
[1617338933328,2.0,1992.0,1991.8,2.90695]
[1617338934328,1.0163,1992.2,1991.8,2.90695]
[1617338934728,13.6778,1992.4,1991.8,4.62845]
[1617338935329,16.58475,1992.4,1992.3,2.90695]
[1617338937333,16.58475,1992.4,1991.8,1.7215]
[1617338937736,81.3762,1991.9,1991.8,1.7215]
[1617338937933,81.3762,1991.9,1991.4,1.4473]
[1617338938536,0.9943,1992.2,1991.0,1.5109]
[1617338938735,66.3814,1991.1,1990.3,1.9829]
[1617338938935,66.3814,1991.1,1989.7,30.0]
[1617338939335,66.3814,1991.1,1991.0,2.90695]
[1617338942036,30.0,1991.1,1991.0,2.90695]
[1617338942237,32.0,1991.1,1991.0,2.90695]
[1617338943036,2.0,1991.1,1991.0,2.90695]
[1617338943236,30.0,1991.4,1991.0,2.90695]
[1617338943438,2.90695,1991.1,1991.0,2.90695]
[1617338943837,32.90695,1991.1,1991.0,2.90695]
[1617338944038,2.90695,1991.1,1991.0,2.90695]
[1617338944637,32.90695,1991.1,1991.0,2.90695]
[1617338945839,63.4847,1991.0,1989.1,3.6057]
[1617338946141,30.0,1990.9,1989.1,2.0]
[1617338947141,64.4993,1991.0,1989.1,2.0]
[1617338947343,64.4993,1991.0,1990.8,2.90695]
[1617338947542,94.4993,1991.0,1990.8,2.90695]
[1617338948642,64.4993,1991.0,1990.8,2.90695]
[1617338948841,14.0413,1991.3,1990.8,2.90695]
[1617338949042,63.7158,1991.0,1990.8,2.90695]
[1617338949444,2.90695,1990.9,1990.8,2.90695]
[1617338951645,32.90695,1990.9,1989.9,1.8573]
[1617338951847,72.7395,1990.4,1989.4,2.0018]
[1617338952045,72.7395,1990.4,1988.7,1.3868]
[1617338952245,72.7395,1990.4,1988.3,72.7395]
[1617338952446,72.7395,1990.4,1988.4,30.0]
[1617338952645,30.0,1990.4,1987.3,2.571]
[1617338952845,63.963,1989.1,1987.3,2.571]
[1617338953046,63.963,1989.1,1987.4,2.0]
[1617338953446,63.963,1989.1,1989.0,2.90695]
[1617338954246,2.90695,1989.8,1989.0,2.90695]
[1617338954446,2.90695,1989.8,1989.0,4.70435]
[1617338954947,13.6052,1990.3,1989.0,4.70435]
[1617338955146,13.6052,1990.3,1989.1,2.0]
[1617338955447,13.6052,1990.3,1990.2,2.90695]
[1617338956649,56.6446,1990.6,1990.2,2.90695]
[1617338957449,2.90695,1990.3,1990.2,2.90695]
[1617338958849,3.90425,1990.3,1990.2,2.90695]
[1617338959052,2.90695,1990.3,1990.2,2.90695]
[1617338959450,2.90695,1990.3,1989.0,1.7974]
[1617338959451,2.90695,1990.3,1990.0,2.90695]
[1617338961456,2.90695,1990.1,1990.0,2.90695]
[1617338972472,78.9222,1990.0,1988.3,2.0]
[1617338973674,78.9222,1990.0,1989.7,2.90695]
[1617338975575,2.90695,1989.8,1989.7,2.90695]
[1617338975775,3.92585,1989.8,1989.7,2.90695]
[1617338975976,2.90695,1989.8,1989.7,2.90695]
[1617338977079,3.90155,1989.8,1989.7,2.90695]
[1617338977577,5.81945,1989.8,1989.5,2.90695]
[1617338978179,2.90695,1989.8,1989.5,2.90695]
[1617338979480,3.90405,1989.8,1989.5,2.90695]
[1617338979682,0.9971,1989.8,1989.7,2.90695]
[1617338981681,3.90405,1989.8,1989.7,2.90695]
[1617338983483,33.90405,1989.8,1989.7,2.90695]
[1617338983682,33.90405,1989.8,1988.1,1.552]
[1617338983683,33.90405,1989.8,1989.5,2.90695]
[1617338984284,3.90405,1989.8,1989.5,2.90695]
[1617338985586,2.90695,1989.6,1989.5,2.90695]
[1617338988188,32.90695,1989.6,1989.5,2.90695]
[1617338988789,2.90695,1989.6,1989.5,2.90695]
[1617338989589,2.90695,1989.6,1989.3,2.90695]
[1617338991592,0.9971,1989.8,1989.3,2.90695]
[1617338991794,2.90695,1989.4,1989.3,2.90695]
[1617338995800,60.2008,1989.3,1989.1,2.90695]
[1617338996402,2.90695,1989.4,1989.1,2.90695]
[1617338996603,2.90695,1989.4,1989.1,4.70515]
[1617338997706,60.1472,1989.5,1989.3,2.90695]
[1617339000507,2.90695,1990.0,1989.3,2.90695]
[1617339001008,72.1619,1991.0,1989.3,34.90695]
[1617339001809,72.1619,1991.0,1990.9,2.90695]
[1617339002010,71.1719,1991.0,1990.9,4.32445]
[1617339002609,71.1719,1991.0,1990.9,1.81052326]
[1617339003211,70.1699,1991.0,1990.9,1.81052326]
[1617339003512,46.15215,1991.2,1990.9,1.81052326]
[1617339003713,46.15215,1991.2,1991.1,2.90695]
[1617339003913,17.47295,1991.2,1991.1,2.90695]
[1617339004113,2.90695,1991.2,1991.1,2.90695]
[1617339005712,2.90695,1991.4,1991.1,2.90695]
[1617339006913,1.0146,1991.6,1991.1,2.90695]
[1617339007114,0.05785164,1992.0,1991.1,2.90695]
[1617339007115,0.0289313,1992.0,1991.1,2.90695]
[1617339007515,0.08679642,1992.1,1991.1,2.90695]
[1617339007716,0.02893382,1992.1,1992.0,2.90695]
[1617339007915,0.02893382,1992.1,1992.0,4.78935]
[1617339008120,0.02894317,1992.3,1992.0,4.78935]
[1617339008520,14.02225718,1992.4,1992.0,4.78935]
[1617339008920,13.9933,1992.4,1992.0,4.78935]
[1617339009819,19.41233312,1992.4,1992.3,2.01927546]
[1617339010119,18.41033312,1992.4,1992.3,2.01927546]
[1617339010621,19.10953461,1992.4,1992.3,2.01927546]
[1617339011621,16.59745149,1992.4,1992.3,2.01927546]
[1617339012024,15.89825,1992.4,1992.3,2.01927546]
[1617339012522,2.90695,1992.4,1992.3,2.01927546]
[1617339012723,3.60603479,1992.4,1992.3,2.01927546]
[1617339013325,2.90695,1992.4,1992.3,2.01927546]
[1617339013725,3.60620402,1992.4,1992.3,2.01927546]
[1617339015427,2.90695,1992.4,1992.3,2.01927546]
[1617339017231,2.37094229,1992.4,1992.3,2.01927546]
[1617339018633,2.19630151,1992.4,1992.3,2.01927546]
[1617339019033,2.37107375,1992.4,1992.3,2.01927546]
[1617339019632,83.47837375,1992.4,1992.3,2.01927546]
[1617339020336,84.18140411,1992.4,1992.3,2.01927546]
[1617339020752,84.18140411,1992.4,1991.4,30.0]
[1617339020954,3.07410411,1992.4,1991.4,30.0]
[1617339021152,77.1235,1991.7,1991.4,30.0]
[1617339021343,0.2921127,1991.5,1991.4,30.0]
[1617339021548,0.2921127,1991.5,1989.8,32.0]
[1617339021942,0.2921127,1991.5,1991.4,2.90695]
[1617339022138,0.2921127,1991.5,1991.4,32.90695]
[1617339023140,0.2921127,1991.5,1991.4,2.90695]
[1617339023541,0.9943,1991.5,1991.4,2.90695]
[1617339023741,63.0475,1990.7,1989.0,63.0475]
[1617339023942,63.0475,1990.7,1990.6,2.90695]
[1617339024142,62.07469037,1990.7,1990.6,2.90695]
[1617339024542,0.02919037,1990.7,1990.6,2.90695]
[1617339025145,0.02919366,1990.8,1990.6,2.90695]
[1617339025344,0.02919366,1990.8,1990.6,4.89425]
[1617339025543,0.02919866,1990.9,1990.6,4.89425]
[1617339025846,0.02919629,1990.8,1990.6,1.9873]
[1617339026042,0.02919629,1990.8,1990.6,31.9873]
[1617339026243,0.02920145,1990.9,1990.6,33.9873]
[1617339026944,0.02921286,1991.0,1990.6,33.9873]
[1617339027345,0.02921286,1991.0,1990.6,3.9873]
[1617339027846,0.02921286,1991.0,1990.9,2.90695]
[1617339029050,0.05841289,1991.0,1990.9,2.90695]
[1617339031151,67.83968505,1991.5,1990.9,2.90695]
[1617339031448,64.93273505,1991.5,1990.9,2.90695]
[1617339032049,64.93273505,1991.5,1991.4,2.90695]
[1617339032254,64.93273505,1991.5,1991.4,4.54745]
[1617339032450,64.23178041,1991.5,1991.4,4.54745]
[1617339033165,64.23178041,1991.5,1991.4,2.90695]
[1617339033358,64.93278353,1991.5,1991.4,2.90695]
[1617339033569,64.93278353,1991.5,1989.9,32.0]
[1617339033771,65.93428353,1991.5,1989.9,32.0]
[1617339033958,65.93428353,1991.5,1991.1,2.90695]
[1617339034360,0.70074359,1991.3,1991.1,2.90695]
[1617339035859,1.58860481,1991.4,1991.1,2.90695]
[1617339036059,2.90695,1991.2,1991.1,2.90695]
[1617339038161,1.90495,1991.2,1991.1,2.90695]
[1617339038664,2.60591768,1991.2,1991.1,2.90695]
[1617339038862,0.70113975,1991.4,1991.1,2.90695]
[1617339039262,0.70113164,1991.3,1991.1,2.90695]
[1617339039664,0.7014242,1991.4,1991.1,2.90695]
[1617339039862,0.7014242,1991.4,1991.1,4.22045]
[1617339040062,64.23178041,1991.5,1991.3,2.90695]
[1617339040463,64.93413484,1991.5,1991.3,2.90695]
[1617339042469,0.70287716,1991.4,1991.3,2.90695]
[1617339043168,65.16888058,1991.5,1991.3,2.90695]
[1617339044172,0.70302914,1991.4,1991.3,2.90695]
[1617339045170,0.58906638,1991.4,1991.3,2.90695]
[1617339045672,64.23178041,1991.5,1991.3,2.90695]
[1617339050073,67.13873041,1991.5,1991.3,2.90695]
[1617339050474,68.07547644,1991.5,1991.3,2.90695]
[1617339052279,67.07347644,1991.5,1991.3,2.90695]
[1617339052477,0.93675639,1991.4,1991.3,2.90695]
[1617339053178,67.0738253,1991.5,1991.3,2.90695]
[1617339053578,3.84404489,1991.5,1991.3,2.90695]
[1617339053779,0.93709489,1991.5,1991.3,2.90695]
[1617339053978,0.93752139,1991.6,1991.3,2.90695]
[1617339054178,0.93752139,1991.6,1991.5,2.90695]
[1617339054379,0.93791748,1991.8,1991.5,4.19915]
[1617339055181,0.93788629,1991.9,1991.5,4.19915]
[1617339056182,0.93788629,1991.9,1991.8,2.90695]
[1617339057883,0.9377836,1992.0,1991.8,2.90695]
[1617339058482,0.93799885,1992.1,1991.8,2.90695]
[1617339059283,1.17249856,1992.3,1991.8,2.90695]
[1617339059284,1.10849741,1992.3,1991.8,2.90695]
[1617339059986,2.05486537,1992.4,1991.8,2.90695]
[1617339060184,2.05486537,1992.4,1992.3,2.90695]
[1617339061289,63.0582,1992.5,1992.3,2.90695]
[1617339061489,2.05444078,1992.6,1992.3,2.90695]
[1617339061891,3.75466642,1993.1,1992.3,2.90695]
[1617339061892,2.05420545,1992.9,1992.3,2.90695]
[1617339062290,2.05401914,1993.0,1992.8,2.90695]
[1617339062691,8.24419021,1993.0,1992.8,2.90695]
[1617339063091,8.24419021,1993.0,1992.8,4.71445]
[1617339063492,7.36501826,1993.0,1992.8,4.71445]
[1617339063893,5.31087244,1993.0,1992.8,4.71445]
[1617339064194,2.90695,1992.9,1992.8,4.71445]
[1617339066298,1.90495,1992.9,1992.8,4.71445]
[1617339068200,1.18352859,1993.0,1992.8,4.71445]
[1617339073005,1.18352859,1993.0,1992.8,2.90695]
[1617339073712,3.23621333,1993.0,1992.8,2.90695]
[1617339074106,1.18352859,1993.0,1990.6,1.5134]
[1617339074309,2.90695,1992.2,1992.0,2.90695]
[1617339074505,4.76515,1992.2,1992.0,2.90695]
[1617339077308,2.90695,1992.2,1992.0,2.90695]
[1617339077509,4.09085925,1992.2,1992.0,2.90695]
[1617339080613,2.05527947,1992.1,1992.0,2.90695]
[1617339086118,3.06147947,1992.1,1992.0,2.90695]
[1617339086318,2.05527947,1992.1,1992.0,2.90695]
[1617339086518,2.94322002,1992.1,1992.0,2.90695]
[1617339086919,2.05527947,1992.1,1992.0,2.90695]
[1617339087118,2.94322327,1992.1,1992.0,2.90695]
[1617339087518,6.01649314,1992.2,1992.0,2.90695]
[1617339087719,5.00699314,1992.2,1992.0,2.90695]
[1617339088719,6.00679314,1992.2,1992.0,2.90695]
[1617339089422,5.00699314,1992.2,1992.0,2.90695]
[1617339091227,7.36532457,1992.2,1992.0,2.90695]
[1617339091828,8.37822457,1992.2,1992.0,2.90695]
[1617339093428,5.2928071,1992.1,1992.0,2.90695]
[1617339093627,5.2928071,1992.1,1990.3,1.3928]
[1617339093827,5.2928071,1992.1,1989.9,2.0]
[1617339094027,0.02938132,1990.3,1990.2,69.3279]
[1617339094326,0.02938132,1990.3,1990.2,2.90695]
[1617339094728,0.02938132,1990.3,1990.2,34.90695]
[1617339096530,0.02938132,1990.3,1990.2,32.90695]
[1617339098031,0.02938132,1990.3,1990.2,34.90695]
[1617339099034,0.02938132,1990.3,1990.2,32.90695]
[1617339099433,1.82859285,1991.0,1990.2,32.90695]
[1617339099834,0.94053217,1991.0,1990.2,32.90695]
[1617339100034,0.94035387,1990.9,1990.2,32.90695]
[1617339100334,0.94035387,1990.9,1990.8,2.90695]
[1617339114352,1.17445851,1991.0,1990.8,2.90695]
[1617339116752,0.9392758,1990.9,1990.8,2.90695]
[1617339122260,3.01166864,1990.9,1990.8,2.90695]
[1617339124363,0.9392758,1990.9,1990.8,2.90695]
[1617339124564,0.88816458,1990.9,1990.8,2.90695]
[1617339124965,1.17256419,1991.0,1990.8,2.90695]
[1617339125164,1.82602734,1990.9,1990.8,2.90695]
[1617339125564,1.17220926,1991.0,1990.8,2.90695]
[1617339125964,0.93743848,1990.9,1990.8,2.90695]
[1617339126164,1.82562157,1990.9,1990.8,2.90695]
[1617339126565,0.93743848,1990.9,1990.8,2.90695]
[1617339126766,59.97483848,1990.9,1990.8,2.90695]
[1617339127268,62.04724857,1990.9,1990.8,2.90695]